[Event "Titled Tuesday Blitz March 21 Late 2023"]
[White "Ozen, Bahadir"]
[Black "Ismagilov, Damir"]
[WhiteFideId "6337058"]
[BlackFideId "34199982"]
[WhiteElo "2503"]
[BlackElo "2078"]
[Result "1/2-1/2"]
[Round "06"]
[TimeControl "180+2"]
[Date "2023.03.21"]
[WhiteClock "0:00:04"]
[BlackClock "0:00:09"]

1. d4 {[%clk 0:02:59]}  Nf6 {[%clk 0:02:59]} 2. Nf3 {[%clk 0:02:59]}  e6 {[%clk 0:02:59]} 3. c4 {[%clk 0:02:59]}  c5 {[%clk 0:02:55]} 4. e3 {[%clk 0:02:53]}  cxd4 {[%clk 0:02:51]} 5. exd4 {[%clk 0:02:53]}  d5 {[%clk 0:02:52]} 6. Nc3 {[%clk 0:02:51]}  Bb4 {[%clk 0:02:49]} 7. Bd3 {[%clk 0:02:47]}  dxc4 {[%clk 0:02:49]} 8. Bxc4 {[%clk 0:02:47]}  O-O {[%clk 0:02:49]} 9. O-O {[%clk 0:02:47]}  b6 {[%clk 0:02:48]} 10. Bg5 {[%clk 0:02:45]}  Bb7 {[%clk 0:02:44]} 11. Ne5 {[%clk 0:02:45]}  Nbd7 {[%clk 0:02:43]} 12. Nxd7 {[%clk 0:02:31]}  Qxd7 {[%clk 0:02:44]} 13. Bxf6 {[%clk 0:02:26]}  gxf6 {[%clk 0:02:45]} 14. d5 {[%clk 0:02:25]}  Bxc3 {[%clk 0:02:37]} 15. Qg4+ {[%clk 0:02:13]}  Kh8 {[%clk 0:02:35]} 16. bxc3 {[%clk 0:02:13]}  Qc7 {[%clk 0:02:05]} 17. Qh4 {[%clk 0:02:01]}  Rg8 {[%clk 0:01:36]} 18. Qxf6+ {[%clk 0:01:51]}  Rg7 {[%clk 0:01:36]} 19. Bb3 {[%clk 0:01:43]}  Qd8 {[%clk 0:01:26]} 20. Qxd8+ {[%clk 0:01:34]}  Rxd8 {[%clk 0:01:27]} 21. c4 {[%clk 0:01:35]}  exd5 {[%clk 0:01:25]} 22. cxd5 {[%clk 0:01:36]}  Bxd5 {[%clk 0:01:21]} 23. Rfd1 {[%clk 0:01:35]}  Rxg2+ {[%clk 0:01:20]} 24. Kf1 {[%clk 0:01:35]}  Rg5 {[%clk 0:00:53]} 25. Rxd5 {[%clk 0:01:20]}  Rgxd5 {[%clk 0:00:54]} 26. Bxd5 {[%clk 0:01:20]}  Rxd5 {[%clk 0:00:53]} 27. Re1 {[%clk 0:01:13]}  Rd2 {[%clk 0:00:49]} 28. a3 {[%clk 0:01:08]}  Rd3 {[%clk 0:00:43]} 29. Re7 {[%clk 0:01:08]}  Rxa3 {[%clk 0:00:43]} 30. Rxf7 {[%clk 0:01:09]}  b5 {[%clk 0:00:42]} 31. Rb7 {[%clk 0:01:09]}  a6 {[%clk 0:00:40]} 32. h4 {[%clk 0:01:08]}  Ra4 {[%clk 0:00:39]} 33. h5 {[%clk 0:01:08]}  h6 {[%clk 0:00:33]} 34. Ke2 {[%clk 0:01:04]}  b4 {[%clk 0:00:21]} 35. Kd3 {[%clk 0:01:04]}  a5 {[%clk 0:00:21]} 36. Kc4 {[%clk 0:00:40]}  Ra3 {[%clk 0:00:19]} 37. f4 {[%clk 0:00:30]}  Rf3 {[%clk 0:00:18]} 38. Kb5 {[%clk 0:00:27]}  Ra3 {[%clk 0:00:13]} 39. Kc4 {[%clk 0:00:26]}  Kg8 {[%clk 0:00:11]} 40. f5 {[%clk 0:00:26]}  Rf3 {[%clk 0:00:11]} 41. Rb5 {[%clk 0:00:24]}  a4 {[%clk 0:00:11]} 42. Kxb4 {[%clk 0:00:22]}  a3 {[%clk 0:00:12]} 43. Ra5 {[%clk 0:00:21]}  Kg7 {[%clk 0:00:12]} 44. Rxa3 {[%clk 0:00:16]}  Rxf5 {[%clk 0:00:11]} 45. Rh3 {[%clk 0:00:09]}  Rd5 {[%clk 0:00:11]} 46. Kc4 {[%clk 0:00:09]}  Rd8 {[%clk 0:00:11]} 47. Rg3+ {[%clk 0:00:09]}  Kf7 {[%clk 0:00:10]} 48. Rg6 {[%clk 0:00:09]}  Rg8 {[%clk 0:00:08]} 49. Rxh6 {[%clk 0:00:09]}  Rg5 {[%clk 0:00:08]} 50. Kd4 {[%clk 0:00:09]}  Kg7 {[%clk 0:00:08]} 51. Rg6+ {[%clk 0:00:08]}  Rxg6 {[%clk 0:00:08]} 52. hxg6 {[%clk 0:00:09]}  Kf6 {[%clk 0:00:09]} 53. g7 {[%clk 0:00:09]}  Kf7 {[%clk 0:00:09]} 54. g8=N {[%clk 0:00:04]} 1/2-1/2


[Site "https://www.chess.com"]

[Event "Titled Tuesday Blitz March 21 Late 2023"]
[White "Idani, Pouya"]
[Black "Papp, Levente"]
[WhiteFideId "12510130"]
[BlackFideId "751243"]
[WhiteElo "2574"]
[BlackElo "2380"]
[Result "0-1"]
[Round "06"]
[TimeControl "180+2"]
[Date "2023.03.21"]
[WhiteClock "0:00:47"]
[BlackClock "0:01:25"]

1. e4 {[%clk 0:03:00]}  e6 {[%clk 0:02:55]} 2. d4 {[%clk 0:03:00]}  d5 {[%clk 0:02:55]} 3. Nc3 {[%clk 0:02:59]}  Bb4 {[%clk 0:02:55]} 4. e5 {[%clk 0:02:59]}  Ne7 {[%clk 0:02:55]} 5. a3 {[%clk 0:02:51]}  Bxc3+ {[%clk 0:02:55]} 6. bxc3 {[%clk 0:02:52]}  b6 {[%clk 0:02:55]} 7. Qg4 {[%clk 0:02:50]}  Ng6 {[%clk 0:02:54]} 8. h4 {[%clk 0:02:47]}  h5 {[%clk 0:02:54]} 9. Qg3 {[%clk 0:02:44]}  Ba6 {[%clk 0:02:53]} 10. Bxa6 {[%clk 0:02:33]}  Nxa6 {[%clk 0:02:54]} 11. Nf3 {[%clk 0:02:34]}  Nb8 {[%clk 0:02:49]} 12. Ng5 {[%clk 0:02:32]}  Qd7 {[%clk 0:02:47]} 13. a4 {[%clk 0:02:25]}  Ne7 {[%clk 0:02:36]} 14. Qf3 {[%clk 0:01:58]}  Nf5 {[%clk 0:02:27]} 15. g4 {[%clk 0:01:57]}  hxg4 {[%clk 0:02:26]} 16. Qxg4 {[%clk 0:01:58]}  c5 {[%clk 0:02:17]} 17. h5 {[%clk 0:01:51]}  Nc6 {[%clk 0:02:13]} 18. Nf3 {[%clk 0:01:51]}  cxd4 {[%clk 0:02:11]} 19. cxd4 {[%clk 0:01:44]}  Nb4 {[%clk 0:02:11]} 20. O-O {[%clk 0:01:35]}  Rc8 {[%clk 0:02:00]} 21. Bg5 {[%clk 0:01:21]}  Nxc2 {[%clk 0:01:49]} 22. Rad1 {[%clk 0:01:06]}  Rc4 {[%clk 0:01:38]} 23. Kg2 {[%clk 0:01:01]}  Qxa4 {[%clk 0:01:35]} 24. h6 {[%clk 0:00:49]}  gxh6 {[%clk 0:01:26]} 25. Bf6 {[%clk 0:00:47]}  Nce3+ {[%clk 0:01:25]} 0-1


[Site "https://www.chess.com"]

[Event "Titled Tuesday Blitz March 21 Late 2023"]
[White "Marjanovic, Annamaria"]
[Black "Averjanov, Alexey"]
[WhiteFideId "750930"]
[BlackFideId "14109867"]
[WhiteElo "2212"]
[BlackElo "2798"]
[Result "0-1"]
[Round "06"]
[TimeControl "180+2"]
[Date "2023.03.21"]
[WhiteClock "0:00:08"]
[BlackClock "0:00:07"]

1. c4 {[%clk 0:03:00]}  c5 {[%clk 0:02:59]} 2. g3 {[%clk 0:03:01]}  Nc6 {[%clk 0:02:59]} 3. Bg2 {[%clk 0:03:02]}  g6 {[%clk 0:03:00]} 4. Nc3 {[%clk 0:03:02]}  Bg7 {[%clk 0:03:00]} 5. a3 {[%clk 0:03:02]}  e6 {[%clk 0:03:00]} 6. Rb1 {[%clk 0:03:01]}  a5 {[%clk 0:02:58]} 7. Nf3 {[%clk 0:02:53]}  Nge7 {[%clk 0:02:58]} 8. O-O {[%clk 0:02:52]}  O-O {[%clk 0:02:59]} 9. b3 {[%clk 0:02:45]}  b6 {[%clk 0:02:57]} 10. Bb2 {[%clk 0:02:44]}  Bb7 {[%clk 0:02:57]} 11. Nb5 {[%clk 0:02:40]}  Bxb2 {[%clk 0:02:54]} 12. Rxb2 {[%clk 0:02:40]}  d5 {[%clk 0:02:51]} 13. d4 {[%clk 0:02:33]}  cxd4 {[%clk 0:02:39]} 14. Nfxd4 {[%clk 0:02:32]}  Nxd4 {[%clk 0:02:40]} 15. Nxd4 {[%clk 0:02:23]}  Rc8 {[%clk 0:02:32]} 16. Rd2 {[%clk 0:02:19]}  Qc7 {[%clk 0:02:26]} 17. Nb5 {[%clk 0:02:04]}  Qb8 {[%clk 0:02:20]} 18. cxd5 {[%clk 0:01:56]}  Bxd5 {[%clk 0:02:18]} 19. e4 {[%clk 0:01:53]}  Bc6 {[%clk 0:02:14]} 20. Nd6 {[%clk 0:01:49]}  Rcd8 {[%clk 0:02:14]} 21. e5 {[%clk 0:01:47]}  Bxg2 {[%clk 0:02:11]} 22. Kxg2 {[%clk 0:01:47]}  Nf5 {[%clk 0:02:05]} 23. Re1 {[%clk 0:01:14]}  Kg7 {[%clk 0:01:54]} 24. Nxf5+ {[%clk 0:00:56]}  exf5 {[%clk 0:01:52]} 25. e6 {[%clk 0:00:53]}  Qb7+ {[%clk 0:01:42]} 26. Kg1 {[%clk 0:00:50]}  Rxd2 {[%clk 0:01:40]} 27. Qxd2 {[%clk 0:00:49]}  Re8 {[%clk 0:01:15]} 28. Qd4+ {[%clk 0:00:33]}  Kh6 {[%clk 0:01:10]} 29. Qf6 {[%clk 0:00:17]}  Rxe6 {[%clk 0:01:06]} 30. Rxe6 {[%clk 0:00:17]}  fxe6 {[%clk 0:01:06]} 31. Qxe6 {[%clk 0:00:17]}  Kg7 {[%clk 0:01:00]} 32. Qe5+ {[%clk 0:00:17]}  Kf7 {[%clk 0:01:01]} 33. Qh8 {[%clk 0:00:16]}  Ke6 {[%clk 0:00:59]} 34. Qg8+ {[%clk 0:00:16]}  Ke5 {[%clk 0:00:54]} 35. Qe8+ {[%clk 0:00:16]}  Kd6 {[%clk 0:00:49]} 36. Qd8+ {[%clk 0:00:17]}  Kc5 {[%clk 0:00:45]} 37. Qf8+ {[%clk 0:00:15]}  Kd4 {[%clk 0:00:43]} 38. Qf6+ {[%clk 0:00:14]}  Kd3 {[%clk 0:00:39]} 39. Qb2 {[%clk 0:00:13]}  Qf3 {[%clk 0:00:34]} 40. Qb1+ {[%clk 0:00:14]}  Kc3 {[%clk 0:00:30]} 41. b4 {[%clk 0:00:13]}  a4 {[%clk 0:00:25]} 42. b5 {[%clk 0:00:11]}  Qe4 {[%clk 0:00:22]} 43. Qc1+ {[%clk 0:00:10]}  Kb3 {[%clk 0:00:21]} 44. Qa1 {[%clk 0:00:09]}  Qc2 {[%clk 0:00:18]} 45. Qd4 {[%clk 0:00:07]}  Kxa3 {[%clk 0:00:14]} 46. Qxb6 {[%clk 0:00:06]}  Kb3 {[%clk 0:00:13]} 47. Qe6+ {[%clk 0:00:06]}  Qc4 {[%clk 0:00:08]} 48. Qxc4+ {[%clk 0:00:06]}  Kxc4 {[%clk 0:00:09]} 49. b6 {[%clk 0:00:07]}  a3 {[%clk 0:00:10]} 50. b7 {[%clk 0:00:08]}  a2 {[%clk 0:00:11]} 51. b8=Q {[%clk 0:00:09]}  a1=Q+ {[%clk 0:00:11]} 52. Kg2 {[%clk 0:00:10]}  Qg7 {[%clk 0:00:11]} 53. Qc8+ {[%clk 0:00:10]}  Kd5 {[%clk 0:00:11]} 54. Qd8+ {[%clk 0:00:10]}  Ke6 {[%clk 0:00:11]} 55. Qd3 {[%clk 0:00:10]}  Qb7+ {[%clk 0:00:10]} 56. Kg1 {[%clk 0:00:09]}  Qd5 {[%clk 0:00:08]} 57. Qe3+ {[%clk 0:00:08]}  Qe5 {[%clk 0:00:09]} 58. Qb6+ {[%clk 0:00:08]}  Kf7 {[%clk 0:00:09]} 59. Qb3+ {[%clk 0:00:09]}  Kg7 {[%clk 0:00:08]} 60. Qb7+ {[%clk 0:00:09]}  Kh6 {[%clk 0:00:08]} 61. h4 {[%clk 0:00:09]}  Qe1+ {[%clk 0:00:05]} 62. Kg2 {[%clk 0:00:09]}  Qe4+ {[%clk 0:00:03]} 63. Qxe4 {[%clk 0:00:09]}  fxe4 {[%clk 0:00:04]} 64. g4 {[%clk 0:00:08]}  g5 {[%clk 0:00:04]} 65. h5 {[%clk 0:00:08]}  Kg7 {[%clk 0:00:04]} 66. Kf1 {[%clk 0:00:08]}  Kf6 {[%clk 0:00:05]} 67. Ke2 {[%clk 0:00:09]}  Ke5 {[%clk 0:00:05]} 68. Ke3 {[%clk 0:00:09]}  h6 {[%clk 0:00:05]} 69. f3 {[%clk 0:00:08]}  exf3 {[%clk 0:00:05]} 70. Kxf3 {[%clk 0:00:09]}  Kd4 {[%clk 0:00:06]} 71. Kg3 {[%clk 0:00:07]}  Ke3 {[%clk 0:00:06]} 72. Kh3 {[%clk 0:00:08]}  Kf3 {[%clk 0:00:07]} 0-1


[Site "https://www.chess.com"]

[Event "Titled Tuesday Blitz March 21 Late 2023"]
[White "MKlose11"]
[Black "Postny, Evgeny"]
[BlackFideId "2804344"]
[WhiteElo "2584"]
[BlackElo "2509"]
[Result "0-1"]
[Round "06"]
[TimeControl "180+2"]
[Date "2023.03.21"]
[WhiteClock "0:00:34"]
[BlackClock "0:02:13"]

1. e4 {[%clk 0:03:00]}  c5 {[%clk 0:02:59]} 2. Nc3 {[%clk 0:03:00]}  g6 {[%clk 0:02:58]} 3. g3 {[%clk 0:03:01]}  Bg7 {[%clk 0:02:59]} 4. d3 {[%clk 0:03:01]}  Nc6 {[%clk 0:02:59]} 5. Be3 {[%clk 0:03:01]}  d6 {[%clk 0:02:59]} 6. Qd2 {[%clk 0:03:02]}  Nd4 {[%clk 0:02:59]} 7. Nd1 {[%clk 0:03:01]}  Nf6 {[%clk 0:02:58]} 8. c3 {[%clk 0:03:01]}  Nc6 {[%clk 0:02:59]} 9. h3 {[%clk 0:03:01]}  d5 {[%clk 0:02:54]} 10. Bg2 {[%clk 0:02:40]}  dxe4 {[%clk 0:02:53]} 11. dxe4 {[%clk 0:02:37]}  Qxd2+ {[%clk 0:02:54]} 12. Bxd2 {[%clk 0:02:38]}  Nd7 {[%clk 0:02:41]} 13. Ne3 {[%clk 0:02:34]}  b6 {[%clk 0:02:38]} 14. f4 {[%clk 0:02:22]}  Ba6 {[%clk 0:02:35]} 15. e5 {[%clk 0:02:19]}  Rc8 {[%clk 0:02:34]} 16. Nf3 {[%clk 0:02:12]}  f6 {[%clk 0:02:35]} 17. exf6 {[%clk 0:01:42]}  exf6 {[%clk 0:02:35]} 18. f5 {[%clk 0:01:42]}  Nde5 {[%clk 0:02:34]} 19. Nxe5 {[%clk 0:01:35]}  Nxe5 {[%clk 0:02:34]} 20. O-O-O {[%clk 0:01:35]}  Nd3+ {[%clk 0:02:33]} 21. Kc2 {[%clk 0:01:35]}  Nf2 {[%clk 0:02:34]} 22. Rde1 {[%clk 0:01:23]}  Nxh1 {[%clk 0:02:30]} 23. Nc4+ {[%clk 0:01:02]}  Kf8 {[%clk 0:02:23]} 24. Nd6 {[%clk 0:00:43]}  Rd8 {[%clk 0:02:22]} 25. Nb7 {[%clk 0:00:34]}  Bxb7 {[%clk 0:02:18]} 26. Bxb7 {[%clk 0:00:35]}  Nxg3 {[%clk 0:02:14]} 27. fxg6 {[%clk 0:00:34]}  hxg6 {[%clk 0:02:14]} 28. Bf4 {[%clk 0:00:34]}  Nf5 {[%clk 0:02:13]} 0-1


[Site "https://www.chess.com"]

[Event "Titled Tuesday Blitz March 21 Late 2023"]
[White "Medina Paz, Miguel"]
[Black "Mahdavi, Reza"]
[WhiteFideId "7300379"]
[BlackFideId "12595926"]
[WhiteElo "2428"]
[BlackElo "2208"]
[Result "1-0"]
[Round "06"]
[TimeControl "180+2"]
[Date "2023.03.21"]
[WhiteClock "0:01:01"]
[BlackClock "0:00:25"]

1. d4 {[%clk 0:02:57]}  Nf6 {[%clk 0:03:00]} 2. c4 {[%clk 0:02:57]}  g6 {[%clk 0:03:00]} 3. Nc3 {[%clk 0:02:56]}  d6 {[%clk 0:03:01]} 4. e4 {[%clk 0:02:56]}  Bg7 {[%clk 0:03:02]} 5. Nf3 {[%clk 0:02:55]}  O-O {[%clk 0:03:02]} 6. Be2 {[%clk 0:02:55]}  Nbd7 {[%clk 0:03:03]} 7. O-O {[%clk 0:02:52]}  e5 {[%clk 0:03:04]} 8. d5 {[%clk 0:02:51]}  Nc5 {[%clk 0:03:00]} 9. Qc2 {[%clk 0:02:50]}  a5 {[%clk 0:02:55]} 10. Bg5 {[%clk 0:02:49]}  h6 {[%clk 0:02:55]} 11. Be3 {[%clk 0:02:48]}  Nfd7 {[%clk 0:02:47]} 12. Nd2 {[%clk 0:02:47]}  f5 {[%clk 0:02:47]} 13. f3 {[%clk 0:02:47]}  f4 {[%clk 0:02:48]} 14. Bf2 {[%clk 0:02:47]}  g5 {[%clk 0:02:48]} 15. b3 {[%clk 0:02:40]}  b6 {[%clk 0:02:47]} 16. a3 {[%clk 0:02:40]}  Nf6 {[%clk 0:02:45]} 17. b4 {[%clk 0:02:39]}  Ncd7 {[%clk 0:02:45]} 18. bxa5 {[%clk 0:02:27]}  Rxa5 {[%clk 0:02:42]} 19. Nb3 {[%clk 0:02:27]}  Ra8 {[%clk 0:02:42]} 20. a4 {[%clk 0:02:28]}  Qe8 {[%clk 0:02:39]} 21. Nb5 {[%clk 0:02:24]}  Qd8 {[%clk 0:02:39]} 22. a5 {[%clk 0:02:24]}  Ba6 {[%clk 0:02:25]} 23. axb6 {[%clk 0:02:22]}  Nxb6 {[%clk 0:02:26]} 24. c5 {[%clk 0:02:18]}  Nbd7 {[%clk 0:02:21]} 25. c6 {[%clk 0:02:11]}  Nb6 {[%clk 0:02:16]} 26. Nxc7 {[%clk 0:02:06]}  Bxe2 {[%clk 0:02:13]} 27. Ne6 {[%clk 0:02:00]}  Rxa1 {[%clk 0:02:11]} 28. Rxa1 {[%clk 0:01:57]}  Qb8 {[%clk 0:02:11]} 29. Nxf8 {[%clk 0:01:52]}  Nbxd5 {[%clk 0:01:53]} 30. c7 {[%clk 0:01:49]}  Nxc7 {[%clk 0:01:52]} 31. Ng6 {[%clk 0:01:44]}  Bb5 {[%clk 0:01:48]} 32. Rc1 {[%clk 0:01:41]}  Ne6 {[%clk 0:01:47]} 33. Qc8+ {[%clk 0:01:39]}  Qxc8 {[%clk 0:01:47]} 34. Rxc8+ {[%clk 0:01:39]}  Kf7 {[%clk 0:01:48]} 35. Nh8+ {[%clk 0:01:34]}  Bxh8 {[%clk 0:01:42]} 36. Rxh8 {[%clk 0:01:34]}  Ng8 {[%clk 0:00:54]} 37. Rh7+ {[%clk 0:01:24]}  Ng7 {[%clk 0:00:54]} 38. Na5 {[%clk 0:01:19]}  Bd7 {[%clk 0:00:32]} 39. Nb7 {[%clk 0:01:18]}  Be6 {[%clk 0:00:33]} 40. Nd8+ {[%clk 0:01:16]}  Kg6 {[%clk 0:00:34]} 41. Rxg7+ {[%clk 0:01:14]}  Kxg7 {[%clk 0:00:31]} 42. Nxe6+ {[%clk 0:01:15]}  Kf6 {[%clk 0:00:32]} 43. Nc7 {[%clk 0:01:15]}  Ne7 {[%clk 0:00:31]} 44. Kf1 {[%clk 0:01:14]}  h5 {[%clk 0:00:28]} 45. h3 {[%clk 0:01:12]}  Nc6 {[%clk 0:00:24]} 46. Ke2 {[%clk 0:01:11]}  Nd8 {[%clk 0:00:24]} 47. Kd3 {[%clk 0:01:09]}  Nf7 {[%clk 0:00:24]} 48. Kc4 {[%clk 0:01:04]}  Nh6 {[%clk 0:00:24]} 49. Kd5 {[%clk 0:01:03]}  Nf7 {[%clk 0:00:25]} 50. Ne8+ {[%clk 0:01:01]}  Ke7 {[%clk 0:00:25]} 51. Nxd6 {[%clk 0:01:01]} 1-0


[Site "https://www.chess.com"]

[Event "Titled Tuesday Blitz March 21 Late 2023"]
[White "Aldokhin, Ivan"]
[Black "TimGrutter03"]
[WhiteFideId "24115720"]
[WhiteElo "2322"]
[BlackElo "2550"]
[Result "0-1"]
[Round "06"]
[TimeControl "180+2"]
[Date "2023.03.21"]
[WhiteClock "0:00:04"]
[BlackClock "0:00:03"]

1. e4 {[%clk 0:03:00]}  g6 {[%clk 0:02:59]} 2. d4 {[%clk 0:03:00]}  Bg7 {[%clk 0:02:59]} 3. Nc3 {[%clk 0:03:01]}  d6 {[%clk 0:02:59]} 4. Bg5 {[%clk 0:03:01]}  Nc6 {[%clk 0:02:57]} 5. d5 {[%clk 0:02:56]}  Nd4 {[%clk 0:02:57]} 6. Nf3 {[%clk 0:02:47]}  Bg4 {[%clk 0:02:52]} 7. Be3 {[%clk 0:02:44]}  Bxf3 {[%clk 0:02:49]} 8. gxf3 {[%clk 0:02:44]}  c5 {[%clk 0:02:49]} 9. Bg2 {[%clk 0:02:43]}  b5 {[%clk 0:02:42]} 10. O-O {[%clk 0:02:39]}  a6 {[%clk 0:02:38]} 11. a4 {[%clk 0:02:27]}  b4 {[%clk 0:02:36]} 12. Nb1 {[%clk 0:02:24]}  b3 {[%clk 0:02:18]} 13. Bxd4 {[%clk 0:02:07]}  bxc2 {[%clk 0:02:07]} 14. Bxg7 {[%clk 0:02:00]}  cxd1=Q {[%clk 0:02:06]} 15. Rxd1 {[%clk 0:02:01]}  f6 {[%clk 0:01:59]} 16. Bxh8 {[%clk 0:01:57]}  Kf8 {[%clk 0:01:42]} 17. Bh3 {[%clk 0:01:49]}  Nh6 {[%clk 0:01:38]} 18. e5 {[%clk 0:01:33]}  Nf7 {[%clk 0:01:27]} 19. e6 {[%clk 0:01:13]}  Nxh8 {[%clk 0:01:27]} 20. Nd2 {[%clk 0:01:07]}  g5 {[%clk 0:01:27]} 21. Nc4 {[%clk 0:00:43]}  Ng6 {[%clk 0:01:27]} 22. a5 {[%clk 0:00:41]}  Ne5 {[%clk 0:01:16]} 23. Nb6 {[%clk 0:00:23]}  Rb8 {[%clk 0:01:05]} 24. Bf1 {[%clk 0:00:23]}  Nxf3+ {[%clk 0:01:01]} 25. Kg2 {[%clk 0:00:23]}  Nh4+ {[%clk 0:00:59]} 26. Kg1 {[%clk 0:00:19]}  Rxb6 {[%clk 0:00:57]} 27. axb6 {[%clk 0:00:19]}  Qxb6 {[%clk 0:00:58]} 28. Rxa6 {[%clk 0:00:18]}  Qb3 {[%clk 0:00:54]} 29. Rd3 {[%clk 0:00:14]}  Nf3+ {[%clk 0:00:37]} 30. Kh1 {[%clk 0:00:14]}  Qc4 {[%clk 0:00:38]} 31. Ra8+ {[%clk 0:00:07]}  Kg7 {[%clk 0:00:37]} 32. Ra7 {[%clk 0:00:07]}  Ne1 {[%clk 0:00:23]} 33. Rxe7+ {[%clk 0:00:06]}  Kg6 {[%clk 0:00:20]} 34. Re8 {[%clk 0:00:02]}  Nxd3 {[%clk 0:00:18]} 35. Rg8+ {[%clk 0:00:02]}  Kh6 {[%clk 0:00:15]} 36. e7 {[%clk 0:00:02]}  Qe4+ {[%clk 0:00:12]} 37. Kg1 {[%clk 0:00:02]}  Qxe7 {[%clk 0:00:03]} 38. Bxd3 {[%clk 0:00:02]}  Qe1+ {[%clk 0:00:03]} 39. Bf1 {[%clk 0:00:03]}  Qe4 {[%clk 0:00:02]} 40. Rd8 {[%clk 0:00:02]}  Qxd5 {[%clk 0:00:01]} 41. Rd7 {[%clk 0:00:02]}  Qe5 {[%clk 0:00:01]} 42. Bd3 {[%clk 0:00:01]}  f5 {[%clk 0:00:02]} 43. Kg2 {[%clk 0:00:01]}  g4 {[%clk 0:00:02]} 44. Ra7 {[%clk 0:00:01]}  Qd5+ {[%clk 0:00:02]} 45. Kg1 {[%clk 0:00:01]}  Qxd3 {[%clk 0:00:02]} 46. Rb7 {[%clk 0:00:02]}  Kg5 {[%clk 0:00:03]} 47. Rg7+ {[%clk 0:00:01]}  Kf4 {[%clk 0:00:03]} 48. Re7 {[%clk 0:00:02]}  Qd1+ {[%clk 0:00:02]} 49. Kg2 {[%clk 0:00:03]}  Qf3+ {[%clk 0:00:03]} 50. Kg1 {[%clk 0:00:03]}  Qd1+ {[%clk 0:00:04]} 51. Kg2 {[%clk 0:00:03]}  Qd5+ {[%clk 0:00:04]} 52. Kg1 {[%clk 0:00:04]}  h5 {[%clk 0:00:05]} 53. Re8 {[%clk 0:00:04]}  h4 {[%clk 0:00:05]} 54. Kf1 {[%clk 0:00:04]}  Qd1+ {[%clk 0:00:04]} 55. Re1 {[%clk 0:00:04]}  Qd3+ {[%clk 0:00:04]} 56. Re2 {[%clk 0:00:04]}  Kf3 {[%clk 0:00:05]} 57. Kg1 {[%clk 0:00:04]}  Qd1+ {[%clk 0:00:03]} 0-1


[Site "https://www.chess.com"]

[Event "Titled Tuesday Blitz March 21 Late 2023"]
[White "Petukhov, Dmitry"]
[Black "EREBUNI91"]
[WhiteFideId "4142748"]
[WhiteElo "2311"]
[BlackElo "2716"]
[Result "0-1"]
[Round "06"]
[TimeControl "180+2"]
[Date "2023.03.21"]
[WhiteClock "0:00:23"]
[BlackClock "0:00:06"]

1. e4 {[%clk 0:02:58]}  c5 {[%clk 0:02:59]} 2. c3 {[%clk 0:02:57]}  Nf6 {[%clk 0:02:57]} 3. e5 {[%clk 0:02:56]}  Nd5 {[%clk 0:02:58]} 4. d4 {[%clk 0:02:56]}  cxd4 {[%clk 0:02:59]} 5. Nf3 {[%clk 0:02:57]}  Nc6 {[%clk 0:02:58]} 6. Bc4 {[%clk 0:02:57]}  Nb6 {[%clk 0:02:57]} 7. Bb3 {[%clk 0:02:57]}  d5 {[%clk 0:02:57]} 8. exd6 {[%clk 0:02:58]}  Qxd6 {[%clk 0:02:56]} 9. O-O {[%clk 0:02:59]}  Bg4 {[%clk 0:02:53]} 10. Bxf7+ {[%clk 0:02:58]}  Kd8 {[%clk 0:02:43]} 11. h3 {[%clk 0:02:58]}  Bxf3 {[%clk 0:02:41]} 12. Qxf3 {[%clk 0:02:58]}  Ne5 {[%clk 0:02:41]} 13. Qf4 {[%clk 0:02:37]}  g5 {[%clk 0:02:22]} 14. Qf5 {[%clk 0:02:35]}  Qf6 {[%clk 0:02:22]} 15. Be6 {[%clk 0:02:23]}  Qxf5 {[%clk 0:01:53]} 16. Bxf5 {[%clk 0:02:24]}  h6 {[%clk 0:01:54]} 17. Rd1 {[%clk 0:02:21]}  Nc6 {[%clk 0:01:52]} 18. cxd4 {[%clk 0:02:14]}  Bg7 {[%clk 0:01:53]} 19. Nc3 {[%clk 0:02:04]}  Rf8 {[%clk 0:01:05]} 20. g4 {[%clk 0:02:04]}  a6 {[%clk 0:01:01]} 21. f4 {[%clk 0:01:59]}  gxf4 {[%clk 0:00:59]} 22. Bxf4 {[%clk 0:01:59]}  e6 {[%clk 0:00:59]} 23. Be5 {[%clk 0:01:52]}  exf5 {[%clk 0:00:51]} 24. Bxg7 {[%clk 0:01:52]}  Rg8 {[%clk 0:00:52]} 25. Bxh6 {[%clk 0:01:50]}  fxg4 {[%clk 0:00:52]} 26. h4 {[%clk 0:01:50]}  Kc7 {[%clk 0:00:47]} 27. Bf4+ {[%clk 0:01:49]}  Kd7 {[%clk 0:00:39]} 28. Ne4 {[%clk 0:01:49]}  Nd5 {[%clk 0:00:40]} 29. Nc5+ {[%clk 0:01:45]}  Kc8 {[%clk 0:00:40]} 30. Bg5 {[%clk 0:01:44]}  b6 {[%clk 0:00:38]} 31. Ne4 {[%clk 0:01:40]}  Kd7 {[%clk 0:00:38]} 32. Nc3 {[%clk 0:01:40]}  Nxc3 {[%clk 0:00:31]} 33. bxc3 {[%clk 0:01:41]}  Raf8 {[%clk 0:00:31]} 34. Rf1 {[%clk 0:01:38]}  b5 {[%clk 0:00:29]} 35. a3 {[%clk 0:01:36]}  Re8 {[%clk 0:00:30]} 36. Rf7+ {[%clk 0:01:34]}  Kd6 {[%clk 0:00:29]} 37. Raf1 {[%clk 0:01:33]}  Rg6 {[%clk 0:00:18]} 38. R1f6+ {[%clk 0:01:31]}  Rxf6 {[%clk 0:00:18]} 39. Rxf6+ {[%clk 0:01:32]}  Kd5 {[%clk 0:00:19]} 40. Rf5+ {[%clk 0:01:29]}  Ke4 {[%clk 0:00:17]} 41. Rc5 {[%clk 0:01:25]}  Kf3 {[%clk 0:00:16]} 42. Bd2 {[%clk 0:01:06]}  Na5 {[%clk 0:00:15]} 43. Rf5+ {[%clk 0:01:04]}  Kg3 {[%clk 0:00:15]} 44. Re5 {[%clk 0:01:03]}  Rxe5 {[%clk 0:00:05]} 45. dxe5 {[%clk 0:01:03]}  Kxh4 {[%clk 0:00:06]} 46. e6 {[%clk 0:01:03]}  Nc6 {[%clk 0:00:05]} 47. Bf4 {[%clk 0:01:00]}  Kh5 {[%clk 0:00:05]} 48. Kg2 {[%clk 0:00:39]}  Kg6 {[%clk 0:00:06]} 49. Kg3 {[%clk 0:00:40]}  Kf5 {[%clk 0:00:06]} 50. Be3 {[%clk 0:00:35]}  Kxe6 {[%clk 0:00:06]} 51. Kxg4 {[%clk 0:00:35]}  Kd5 {[%clk 0:00:07]} 52. Kf5 {[%clk 0:00:34]}  Kc4 {[%clk 0:00:08]} 53. Ke6 {[%clk 0:00:34]}  Kxc3 {[%clk 0:00:08]} 54. Kd6 {[%clk 0:00:34]}  Na5 {[%clk 0:00:08]} 55. Kc7 {[%clk 0:00:33]}  Nc4 {[%clk 0:00:08]} 56. Bc1 {[%clk 0:00:34]}  Kc2 {[%clk 0:00:08]} 57. Bf4 {[%clk 0:00:29]}  Nxa3 {[%clk 0:00:08]} 58. Kb6 {[%clk 0:00:28]}  b4 {[%clk 0:00:08]} 59. Bd6 {[%clk 0:00:28]}  Nc4+ {[%clk 0:00:06]} 60. Kc5 {[%clk 0:00:23]}  b3 {[%clk 0:00:06]} 0-1


[Site "https://www.chess.com"]